fUST/lending_fUST_20240215
["ID","MTS","AMOUNT","RATE_DAILY","PERIOD"]
[314088877,1707969040169,-505.56615774,0.00036597,14]
[314088879,1707969040178,-500.0,0.00036597,14]
[314088881,1707969040187,-500.0,0.00036597,14]
[314088883,1707969040196,-501.30006247,0.00036597,14]
[314088885,1707969040205,-504.77975332,0.00036597,14]
[314088887,1707969040214,-500.0,0.00036597,14]
[314088890,1707969040224,-506.56484932,0.00036597,14]
[314088891,1707969040233,-500.0,0.00036597,14]
[314088893,1707969040242,-500.0,0.00036597,14]
[314088895,1707969040252,-505.6144463,0.00036597,14]
[314088897,1707969040262,-500.0,0.00036597,14]
[314088900,1707969040271,-580.37169468,0.00036698,14]
[314088902,1707969040281,-500.0,0.00036698,14]
[314088904,1707969040290,-500.0,0.00036698,7]
[314088905,1707969040300,-500.0,0.00036698,14]
[314088908,1707969040309,-500.0,0.00036698,7]
[314088909,1707969040318,-500.0,0.00036698,14]
[314088911,1707969040327,-392.64141406,0.00036698,14]
[314088913,1707969040337,-263.2000811,0.00036698,14]
[314088915,1707969040346,-500.0,0.00036698,14]
[314088917,1707969040355,-16723.32,0.0003673,14]
[314088919,1707969040364,-242.14726824,0.0003673,14]
[314088921,1707969040373,-893.08,0.0003673,14]
[314088923,1707969040382,-500.0,0.0003673,14]
[314088925,1707969040391,-15204.01,0.0003673,14]
[314088927,1707969040400,-28187.4,0.0003673,14]
[314088929,1707969040409,-643.24,0.0003673,14]
[314088931,1707969040418,-500.0,0.0003673,14]
[314088933,1707969040426,-500.0,0.0003673,14]
[314088935,1707969040436,-500.0,0.0003673,14]
[314088937,1707969040445,-500.0,0.00036731,14]
[314088939,1707969040454,-500.0,0.00036731,14]
[314088941,1707969040463,-769.5,0.00036731,14]
[314088943,1707969040472,-500.0,0.00036731,14]
[314088945,1707969040482,-2246.24,0.00036731,14]
[314088947,1707969040491,-1049.79,0.00036731,14]
[314088949,1707969040500,-576.70942644,0.00036731,14]
[314088951,1707969040509,-1110.74,0.00036731,14]
[314088953,1707969040518,-500.0,0.00036731,14]
[314088955,1707969040527,-500.0,0.00036731,14]
[314088957,1707969040537,-512.63857938,0.00036731,14]
[314088959,1707969040546,-864.21,0.00036731,14]
[314088961,1707969040555,-500.0,0.00036731,14]
[314088963,1707969040564,-511.58957897,0.00036731,14]
[314088965,1707969040573,-859.36,0.00036731,14]
[314088967,1707969040582,-1861.92,0.00036731,14]
[314088969,1707969040591,-500.0,0.00036731,14]
[314088971,1707969040600,-500.0,0.00036731,14]
[314088973,1707969040609,-1627.82,0.00036731,14]
[314088975,1707969040617,-500.0,0.00036731,14]
[314088977,1707969040626,-1331.97,0.00036731,14]
[314088979,1707969040635,-8494.99,0.00036731,14]
[314088981,1707969040644,-7858.11,0.00036731,14]
[314088983,1707969040653,-500.0,0.00036731,14]
[314088985,1707969040663,-500.0,0.00036731,14]
[314088987,1707969040671,-3146.9,0.00036731,14]
[314088989,1707969040680,-500.0,0.00036732,14]
[314088991,1707969040689,-603.69162172,0.00036732,14]
[314088993,1707969040698,-500.0,0.00036732,14]
[314088995,1707969040707,-745.83,0.00036732,14]
[314088997,1707969040716,-500.0,0.00036732,14]
[314088998,1707969040726,-500.0,0.00036732,14]
[314088999,1707969040734,-500.0,0.00036732,14]
[314089000,1707969040743,-539.16,0.00036732,14]
[314089001,1707969040752,-500.0,0.00036732,14]
[314089002,1707969040761,-692.46,0.00036732,14]
[314089003,1707969040770,-500.0,0.00036732,14]
[314089004,1707969040779,-500.0,0.00036732,14]
[314089005,1707969040788,-510.66884095,0.00036732,14]
[314089006,1707969040797,-507.61309093,0.00036732,14]
[314089007,1707969040806,-529.90121524,0.00036732,14]
[314089008,1707969040815,-500.0,0.00036732,14]
[314089009,1707969040824,-500.0,0.00036732,14]
[314089010,1707969040833,-2324.68,0.00036732,14]
[314089012,1707969040842,-583.6952767,0.00036732,14]
[314089014,1707969040851,-504.18399464,0.00036732,14]
[314089016,1707969040860,-1790.7,0.00036732,14]
[314089018,1707969040869,-500.0,0.00036732,14]
[314089020,1707969040878,-500.0,0.00036732,14]
[314089022,1707969040887,-500.0,0.00036732,14]
[314089024,1707969040897,-500.0,0.00036732,14]
[314089026,1707969040906,-500.0,0.00036732,14]
[314089028,1707969040915,-941.39,0.00036732,14]
[314089030,1707969040924,-500.0,0.00036732,14]
[314089032,1707969040933,-500.0,0.00036732,14]
[314089034,1707969040941,-1551.06,0.00036732,14]
[314089036,1707969040952,-500.0,0.00036732,14]
[314089045,1707969041029,-500.0,0.00036732,14]
[314089047,1707969041042,-18813.72,0.00036732,14]
[314089049,1707969041052,-800.81,0.00036732,14]
[314089051,1707969041061,-503.03626653,0.00036732,14]
[314089053,1707969041071,-1752.01,0.00036732,14]
[314089055,1707969041081,-18040.08,0.00036732,14]
[314089058,1707969041090,-835.66,0.00036732,14]
[314089060,1707969041099,-5550.57,0.00036732,14]
[314089062,1707969041108,-1650.9,0.00036732,14]
[314089064,1707969041119,-1447.83,0.00036732,14]
[314089066,1707969041128,-500.0,0.00036732,14]
[314089067,1707969041137,-500.0,0.00036733,14]
[314089069,1707969041146,-223.02086186,0.00036733,14]
[314089071,1707969041155,-504.65261844,0.00036733,14]
[314089073,1707969041165,-500.0,0.00036733,14]
[314089075,1707969041174,-500.0,0.00036733,14]
[314089077,1707969041183,-500.0,0.00036733,14]
[314089079,1707969041192,-507.25398123,0.00036733,14]
[314089081,1707969041201,-500.0,0.00036733,7]
[314089084,1707969041212,-500.0,0.00036733,14]
[314089086,1707969041221,-345.27422997,0.00036733,14]
[314089088,1707969041230,-333.62986552,0.00036733,14]
[314089089,1707969041239,-500.0,0.00036733,14]
[314089091,1707969041249,-500.0,0.00036733,14]
[314089093,1707969041259,-500.0,0.00036733,14]
[314089095,1707969041269,-504.2872166,0.00036733,14]
[314089097,1707969041280,-500.0,0.00036733,14]
[314089100,1707969041290,-272.28977375,0.00036733,14]
[314089102,1707969041299,-535.37576033,0.00036733,14]
[314089103,1707969041309,-500.0,0.00036733,14]
[314089105,1707969041318,-500.0,0.00036733,14]
[314089107,1707969041328,-500.0,0.00036733,14]
[314089109,1707969041337,-500.0,0.00036733,14]
[314089111,1707969041346,-500.0,0.00036734,14]
[314089113,1707969041355,-500.0,0.00036734,14]
[314089115,1707969041365,-500.0,0.00036734,14]
[314089117,1707969041374,-500.0,0.00036734,14]
[314089119,1707969041383,-500.0,0.00036734,14]
[314089121,1707969041392,-500.0,0.00036734,14]
[314089123,1707969041401,-388.7769542,0.00036734,7]
[314089126,1707969041412,-500.0,0.00036734,14]
[314089128,1707969041421,-2326.95,0.00036734,7]
[314089130,1707969041430,-548.30171102,0.00036734,14]
[314089132,1707969041438,-500.0,0.00036734,14]
[314089134,1707969041449,-265.94803034,0.00036734,14]
[314089136,1707969041459,-500.0,0.00036734,14]
[314089137,1707969041469,-240.52991629,0.00036734,14]
[314089139,1707969041480,-504.57521768,0.00036734,14]
[314089141,1707969041488,-511.85670083,0.00036734,14]
[314089143,1707969041497,-500.0,0.00036734,14]
[314089145,1707969041506,-500.0,0.00036734,14]
[314089147,1707969041515,-500.0,0.00036734,14]
[314089149,1707969041524,-500.0,0.00036734,14]
[314089151,1707969041533,-500.0,0.00036734,14]
[314089153,1707969041542,-500.0,0.00036734,14]
[314089155,1707969041551,-153.34627261,0.00036758,7]
[314089157,1707969041560,-225330.74174311,0.0003678,30]
[314089159,1707969041569,-170.65,0.0003678,35]
[314089161,1707969041579,-150.76,0.0003678,35]
[314089163,1707969041588,-7949.51106263,0.0003678,30]
[314089165,1707969041597,-150.5,0.0003679,35]
[314089167,1707969041606,-150.5,0.0003679,35]
[314089169,1707969041615,-158.74,0.0003679,35]
[314089171,1707969041623,-545.90105422,0.00036799,15]
[314089173,1707969041632,-500.0,0.00036799,15]
[314089175,1707969041642,-245.58748633,0.00036799,15]
[314089177,1707969041651,-190.25967663,0.00036799,15]
[314089179,1707969041661,-295.8255757,0.00036799,15]
[314089181,1707969041670,-233.95759467,0.00036799,15]
[314089183,1707969041679,-500.0,0.00036799,15]
[314089185,1707969041688,-500.0,0.00036799,15]
[314089188,1707969041698,-614.05011946,0.00036799,15]
[314089190,1707969041707,-212.93069845,0.00036799,15]
[314089192,1707969041716,-226.03242213,0.00036799,15]
[314089194,1707969041726,-500.0,0.00036799,15]
[314089195,1707969041735,-493.52207902,0.00036799,15]
[314089197,1707969041744,-500.0,0.00036799,15]
[314089199,1707969041754,-500.0,0.00036799,15]
[314089200,1707969041763,-500.0,0.00036799,14]
[314089202,1707969041772,-500.0,0.00036799,14]
[314089204,1707969041781,-500.0,0.00036799,14]
[314089206,1707969041789,-500.0,0.00036799,14]
[314089208,1707969041798,-500.0,0.00036799,14]
[314089210,1707969041807,-500.0,0.00036799,14]
[314089212,1707969041816,-500.0,0.00036799,14]
[314089214,1707969041825,-500.0,0.00036799,14]
[314089216,1707969041835,-500.0,0.00036799,14]
[314089218,1707969041844,-500.0,0.00036799,14]
[314089220,1707969041853,-500.0,0.00036799,14]
[314089222,1707969041863,-500.0,0.00036799,14]
[314089224,1707969041872,-500.0,0.00036799,14]
[314089226,1707969041881,-470.10172213,0.00036799,14]
[314089228,1707969041891,-455146.6489918,0.000368,30]
[314089523,1707969044784,-726.21,0.00036593,14]
[314089525,1707969044793,-500.0,0.00036594,14]
[314089527,1707969044803,-1746.38,0.00036721,3]
[314089529,1707969044811,-726.21,0.0003673,14]
[314089531,1707969044821,-500.0,0.00036731,14]
[314089533,1707969044831,-1041.23013268,0.000368,30]
[314089535,1707969044843,-7061.95676513,0.000368,30]
[314089541,1707969044871,-4668.49665952,0.000368,30]
[314089652,1707969045931,-500.0,0.00036593,14]
[314089654,1707969045940,-59.74,0.0003673,14]
[314090127,1707969234964,1224.79147668,0.00022,2]
[314090128,1707969234989,4487.26062623,0.00022,2]
[314090129,1707969248025,512.73937377,0.0002259,2]
[314090130,1707969248052,5000.0,0.0002259,2]
[314090132,1707970185424,10000.0,0.00021,10]
[314090133,1707970203549,412.0,0.00021,10]
[314090146,1707970232045,-605.72023374,0.00022,2]
[314090148,1707970232055,-1944.6968129,0.0002259,2]
[314090149,1707970232064,-1247.88869023,0.00025297,2]
[314090150,1707970232074,-1876.71362758,0.000278,2]
[314090151,1707970232085,-168.1012912,0.00028582,2]
[314090152,1707970232094,-169.890413,0.00028957,2]
[314090153,1707970232104,-6841.6133064,0.00029071,2]
[314090154,1707970232115,-20023.24395162,0.0003,2]
[314090155,1707970232124,-151.17082303,0.00031793,30]
[314090156,1707970232134,-661.93688817,0.00031822,2]
[314090157,1707970232143,-7499.9556225,0.00032,15]
[314090158,1707970232152,-1693.44125369,0.00032174,5]
[314090159,1707970232161,-800.11449213,0.00032184,5]
[314090160,1707970232171,-200.0,0.00032189,15]
[314090161,1707970232180,-1212.95081833,0.00032193,5]
[314090162,1707970232189,-151.17082303,0.00032442,7]
[314090163,1707970232198,-151.17082303,0.00033104,4]
[314090164,1707970232207,-151.17082303,0.0003378,2]
[314090165,1707970232217,-395.56780515,0.000347,2]
[314090166,1707970232226,-509.26,0.00035,7]
[314090167,1707970232235,-1650.53,0.0003539,3]
[314090168,1707970232244,-1146.2,0.0003539,3]
[314090169,1707970232254,-1910.65,0.0003539,3]
[314090170,1707970232263,-32626.54467939,0.000354,2]
[314090171,1707970232276,-2487.82431991,0.000354,2]
[314090172,1707970232287,-1348.34555049,0.000354,2]
[314090173,1707970232299,-705.26161988,0.000354,2]
[314090174,1707970232308,-280.0,0.00035408,15]
[314090175,1707970232317,-148.87409821,0.00035593,2]
[314090194,1707970238062,-12010.24318483,0.00032193,5]
[314090196,1707970238071,-1592.2,0.0003539,3]
[314090198,1707970238081,-6.12590179,0.00035593,2]
[314090200,1707970238091,-500.0,0.00035616,14]
[314090202,1707970238100,-600.0,0.000358,2]
[314090204,1707970238110,-600.0,0.000358,3]
[314090205,1707970238118,-8835.0347218,0.00036,2]
[314090206,1707970238127,-1122.83432504,0.00036,3]
[314090207,1707970238136,-153.34627261,0.00036093,7]
[314090208,1707970238146,-346.27020784,0.00036496,14]
[314090209,1707970238155,-153.34627261,0.00036527,7]
[314090210,1707970238163,-155.83992726,0.00036546,2]
[314090211,1707970238172,-500.0,0.00036588,15]
[314090212,1707970238181,-397.04612724,0.00036588,15]
[314090213,1707970238190,-174.59536116,0.00036588,15]
[314090214,1707970238198,-500.0,0.00036588,15]
[314090215,1707970238207,-500.0,0.00036588,15]
[314090216,1707970238216,-500.0,0.00036588,15]
[314090217,1707970238225,-500.0,0.00036588,15]
[314090218,1707970238234,-500.0,0.00036588,15]
[314090219,1707970238242,-500.0,0.00036588,15]
[314090220,1707970238251,-500.0,0.00036588,15]
[314090221,1707970238260,-500.0,0.00036588,15]
[314090223,1707970238269,-500.0,0.00036588,15]
[314090225,1707970238278,-500.0,0.00036588,15]
[314090227,1707970238288,-191.18225972,0.00036588,15]
[314090229,1707970238297,-500.0,0.00036588,15]
[314090231,1707970238306,-500.0,0.00036588,15]
[314090233,1707970238315,-16280.72,0.00036589,14]
[314090235,1707970238324,-242.14726824,0.00036589,14]
[314090237,1707970238334,-855.86,0.00036589,14]
[314090239,1707970238343,-500.0,0.00036589,14]
[314090241,1707970238352,-14570.51,0.00036589,14]
[314090243,1707970238361,-27012.92,0.00036589,14]
[314090245,1707970238370,-616.44,0.00036589,14]
[314090247,1707970238379,-500.0,0.00036589,14]
[314090249,1707970238389,-500.0,0.00036589,14]
[314090251,1707970238402,-500.0,0.0003659,14]
[314090253,1707970238411,-500.0,0.0003659,14]
[314090255,1707970238420,-697.76,0.0003659,14]
[314090257,1707970238430,-2210.86,0.0003659,14]
[314090258,1707970238439,-500.0,0.0003659,14]
[314090260,1707970238449,-1031.76,0.0003659,14]
[314090262,1707970238458,-500.0,0.0003659,14]
[314090264,1707970238467,-500.0,0.0003659,14]
[314090266,1707970238477,-1085.29,0.0003659,14]
[314090268,1707970238487,-849.03,0.0003659,14]
[314090270,1707970238497,-1817.6,0.0003659,14]
[314090272,1707970238507,-500.0,0.0003659,14]
[314090274,1707970238517,-534.30204635,0.0003659,14]
[314090276,1707970238526,-509.89484034,0.0003659,14]
[314090278,1707970238534,-1559.99,0.0003659,14]
[314090280,1707970238543,-1276.47,0.0003659,14]
[314090282,1707970238553,-500.0,0.0003659,14]
[314090284,1707970238562,-8141.03,0.0003659,14]
[314090286,1707970238571,-500.0,0.0003659,14]
[314090288,1707970238580,-7530.68,0.0003659,14]
[314090290,1707970238588,-3015.78,0.0003659,14]
[314090292,1707970238597,-2264.52,0.0003659,14]
[314090294,1707970238606,-285.50953037,0.00036591,14]
[314090296,1707970238615,-510.46755575,0.00036591,14]
[314090298,1707970238624,-500.0,0.00036591,14]
[314090300,1707970238633,-500.0,0.00036591,14]
[314090302,1707970238641,-195.99445327,0.00036591,14]
[314090304,1707970238650,-500.0,0.00036591,14]
[314090305,1707970238659,-500.0,0.00036591,14]
[314090308,1707970238669,-184.23353177,0.00036591,14]
[314090310,1707970238679,-514.93351127,0.00036591,14]
[314090311,1707970238689,-500.0,0.00036591,14]
[314090313,1707970238698,-516.94149683,0.00036591,14]
[314090315,1707970238707,-511.58957897,0.00036591,14]
[314090317,1707970238716,-500.0,0.00036591,14]
[314090319,1707970238726,-500.0,0.00036591,14]
[314090321,1707970238734,-501.74485484,0.00036591,14]
[314090323,1707970238745,-540.13,0.00036591,14]
[314090325,1707970238754,-557.04962915,0.00036591,14]
[314090327,1707970238764,-401.84311323,0.00036591,14]
[314090329,1707970238773,-266.15669203,0.00036591,14]
[314090331,1707970238782,-500.0,0.00036591,14]
[314090333,1707970238790,-500.0,0.00036591,14]
[314090335,1707970238799,-500.0,0.00036591,14]
[314090337,1707970238808,-500.0,0.00036591,14]
[314090339,1707970238818,-583.6952767,0.00036591,14]
[314090341,1707970238827,-1716.08,0.00036591,14]
[314090343,1707970238836,-511.00343445,0.00036591,14]
[314090345,1707970238845,-500.0,0.00036591,14]
[314090347,1707970238853,-500.0,0.00036591,14]
[314090349,1707970238862,-500.0,0.00036591,14]
[314090351,1707970238871,-315.01598404,0.00036591,14]
[314090353,1707970238880,-500.0,0.00036591,14]
[314090355,1707970238889,-528.03076737,0.00036591,14]
[314090357,1707970238898,-500.0,0.00036591,14]
[314090359,1707970238907,-500.0,0.00036591,14]
[314090361,1707970238919,-500.0,0.00036591,14]
[314090363,1707970238928,-510.79586648,0.00036591,14]
[314090365,1707970238936,-503.03626653,0.00036591,14]
[314090367,1707970238945,-500.0,0.00036591,7]
[314090369,1707970238954,-1679.01,0.00036591,14]
[314090371,1707970238964,-800.84,0.00036591,14]
[314090373,1707970238973,-502.42635629,0.00036592,14]
[314090384,1707970239064,-517.23573722,0.00036592,2]
[314090386,1707970239074,-500.0,0.00036592,14]
[314090388,1707970239084,-517.39206153,0.00036592,14]
[314090390,1707970239093,-339.46078471,0.00036592,14]
[314090392,1707970239102,-500.0,0.00036592,14]
[314090394,1707970239111,-500.0,0.00036592,14]
[314090396,1707970239121,-500.0,0.00036592,14]
[314090398,1707970239130,-530.35047603,0.00036592,14]
[314090400,1707970239139,-500.0,0.00036592,14]
[314090402,1707970239149,-500.0,0.00036592,14]
[314090404,1707970239158,-512.63857938,0.00036592,14]
[314090406,1707970239167,-500.0,0.00036592,14]
[314090408,1707970239176,-823.56,0.00036592,14]
[314090410,1707970239185,-500.0,0.00036592,14]
[314090412,1707970239194,-735.59,0.00036592,14]
[314090414,1707970239203,-500.0,0.00036592,14]
[314090416,1707970239212,-500.0,0.00036592,14]
[314090418,1707970239222,-500.0,0.00036592,14]
[314090420,1707970239231,-506.57653874,0.00036592,14]
[314090422,1707970239240,-500.0,0.00036592,14]
[314090424,1707970239250,-500.0,0.00036592,14]
[314090426,1707970239259,-684.44,0.00036592,14]
[314090428,1707970239269,-500.0,0.00036592,14]
[314090430,1707970239279,-500.0,0.00036592,14]
[314090432,1707970239288,-500.0,0.00036592,14]
[314090434,1707970239298,-500.0,0.00036592,14]
[314090436,1707970239307,-302.19009296,0.00036592,14]
[314090438,1707970239316,-489.82980321,0.00036592,14]
[314090440,1707970239326,-212.18676146,0.00036592,14]
[314090442,1707970239337,-503.32932476,0.00036592,14]
[314090444,1707970239346,-439.02807789,0.00036592,14]
[314090446,1707970239355,-504.18399464,0.00036592,14]
[314090448,1707970239365,-503.4326383,0.00036592,14]
[314090450,1707970239374,-508.6563458,0.00036592,14]
[314090452,1707970239385,-902.17,0.00036592,14]
[314090454,1707970239395,-500.0,0.00036592,14]
[314090456,1707970239406,-500.0,0.00036592,14]
[314090458,1707970239415,-500.0,0.00036592,14]
[314090460,1707970239424,-500.0,0.00036592,14]
[314090462,1707970239433,-500.0,0.00036592,14]
[314090464,1707970239443,-1486.43,0.00036592,14]
[314090466,1707970239452,-500.0,0.00036592,14]
[314090468,1707970239462,-500.0,0.00036592,14]
[314090470,1707970239471,-500.0,0.00036592,14]
[314090472,1707970239482,-500.0,0.00036592,14]
[314090474,1707970239491,-18029.82,0.00036592,14]
[314090476,1707970239500,-500.0,0.00036592,14]
[314090478,1707970239511,-500.0,0.00036592,14]
[314090480,1707970239521,-767.44,0.00036592,14]
[314090482,1707970239530,-504.24519245,0.00036592,14]
[314090484,1707970239539,-17288.41,0.00036592,14]
[314090486,1707970239548,-500.0,0.00036592,14]
[314090488,1707970239557,-5319.3,0.00036592,14]
[314090490,1707970239566,-503.4400308,0.00036592,14]
[314090492,1707970239575,-1387.5,0.00036592,14]
[314090494,1707970239584,-500.0,0.00036592,14]
[314090496,1707970239593,-544.11636985,0.00036592,14]
[314090498,1707970239603,-500.0,0.00036592,14]
[314090500,1707970239613,-500.0,0.00036592,14]
[314090502,1707970239622,-500.0,0.00036592,14]
[314090504,1707970239631,-564.36544628,0.00036592,14]
[314090506,1707970239640,-574.18027158,0.00036592,14]
[314090508,1707970239649,-506.21858276,0.00036592,14]
[314090510,1707970239658,-503.20204968,0.00036592,14]
[314090512,1707970239667,-500.0,0.00036592,14]
[314090514,1707970239676,-500.0,0.00036592,14]
[314090516,1707970239685,-500.0,0.00036592,14]
[314090518,1707970239694,-500.0,0.00036592,14]
[314090520,1707970239703,-500.0,0.00036592,14]
[314090522,1707970239712,-1582.11,0.00036593,14]
[314090524,1707970239723,-500.0,0.00036593,14]
[314090525,1707970239733,-500.0,0.00036593,14]
[314090527,1707970239742,-2229.99,0.00036593,7]
[314090530,1707970239752,-500.0,0.00036593,14]
[314090532,1707970239761,-500.0,0.00036593,14]
[314090533,1707970239770,-500.0,0.00036593,14]
[314090535,1707970239779,-388.7769542,0.00036594,7]
[314090537,1707970239788,-178.61972058,0.00036594,14]
[314090539,1707970239797,-500.0,0.00036594,14]
[314090541,1707970239807,-345.27422997,0.00036594,14]
[314090544,1707970239818,-333.62986552,0.00036594,14]
[314090546,1707970239827,-431.41224199,0.00036594,14]
[314090548,1707970239836,-500.0,0.00036594,14]
[314090550,1707970239845,-500.0,0.00036594,14]
[314090552,1707970239854,-500.0,0.00036594,14]
[314090554,1707970239863,-500.0,0.00036594,14]
[314090556,1707970239872,-500.0,0.00036594,14]
[314090558,1707970239881,-240.52991629,0.00036594,14]
[314090560,1707970239890,-500.0,0.00036594,14]
[314090562,1707970239899,-555.85105106,0.00036594,14]
[314090563,1707970239908,-450.74553218,0.00036594,14]
[314090565,1707970239918,-504.2872166,0.00036594,14]
[314090567,1707970239926,-504.57521768,0.00036594,14]
[314090569,1707970239935,-171.89335008,0.00036594,14]
[314090571,1707970239944,-500.0,0.00036594,14]
[314090573,1707970239953,-272.28977375,0.00036594,14]
[314090575,1707970239962,-500.0,0.00036594,14]
[314090577,1707970239971,-505.56615774,0.00036594,14]
[314090579,1707970239981,-500.0,0.00036594,14]
[314090581,1707970239991,-500.0,0.00036594,14]
[314090584,1707970240001,-535.37576033,0.00036594,14]
[314090585,1707970240011,-501.30006247,0.00036594,14]
[314090587,1707970240021,-504.77975332,0.00036594,14]
[314090590,1707970240030,-500.0,0.00036594,14]
[314090592,1707970240040,-506.56484932,0.00036594,14]
[314090593,1707970240049,-500.0,0.00036594,14]
[314090595,1707970240059,-500.0,0.00036594,14]
[314090597,1707970240069,-505.6144463,0.00036594,14]
[314090600,1707970240080,-500.0,0.00036594,14]
[314090602,1707970240089,-500.0,0.00036594,14]
[314090604,1707970240099,-500.0,0.00036594,14]
[314090606,1707970240108,-500.0,0.00036595,14]
[314090608,1707970240118,-500.0,0.00036595,7]
[314090610,1707970240127,-500.0,0.00036595,14]
[314090612,1707970240136,-500.0,0.00036595,7]
[314090614,1707970240146,-484.9654327,0.00036595,14]
[314090616,1707970240155,-502.73300401,0.00036595,14]
[314090618,1707970240164,-500.0,0.00036699,14]
[314090621,1707970240173,-500.0,0.00036699,14]
[314090624,1707970240182,-500.0,0.00036699,14]
[314090626,1707970240191,-500.0,0.00036699,14]
[314090628,1707970240201,-500.0,0.00036699,14]
[314090629,1707970240210,-500.0,0.00036699,14]
[314090631,1707970240219,-500.0,0.00036699,14]
[314090633,1707970240228,-276000.0,0.000367,2]
[314090635,1707970240237,-500.0,0.00036725,15]
[314090637,1707970240247,-192.86209772,0.00036725,15]
[314090640,1707970240256,-500.0,0.00036725,15]
[314090641,1707970240266,-500.0,0.00036725,15]
[314090643,1707970240275,-308.88120882,0.00036725,15]
[314090645,1707970240285,-500.0,0.00036725,15]
[314090647,1707970240294,-212.11767445,0.00036725,15]
[314090649,1707970240303,-500.0,0.00036725,15]
[314090651,1707970240312,-500.0,0.00036725,15]
[314090653,1707970240321,-500.0,0.00036725,15]
[314090655,1707970240331,-500.0,0.00036725,15]
[314090658,1707970240340,-433.31385169,0.00036725,15]
[314090660,1707970240349,-500.0,0.00036725,15]
[314090662,1707970240359,-273.3807279,0.00036725,15]
[314090664,1707970240368,-500.0,0.00036725,15]
[314090665,1707970240377,-16280.72,0.00036726,14]
[314090667,1707970240386,-855.86,0.00036726,14]
[314090669,1707970240396,-500.0,0.00036726,14]
[314090671,1707970240408,-14570.51,0.00036726,14]
[314090673,1707970240417,-27012.92,0.00036726,14]
[314090675,1707970240425,-616.44,0.00036726,14]
[314090678,1707970240435,-500.0,0.00036726,14]
[314090680,1707970240445,-500.0,0.00036726,14]
[314090682,1707970240454,-500.0,0.00036727,14]
[314090684,1707970240464,-500.0,0.00036727,14]
[314090685,1707970240473,-697.76,0.00036727,14]
[314090687,1707970240484,-500.0,0.00036727,14]
[314090689,1707970240493,-2210.86,0.00036727,14]
[314090692,1707970240502,-1031.76,0.00036727,14]
[314090694,1707970240513,-576.70942644,0.00036727,14]
[314090696,1707970240522,-1085.29,0.00036727,14]
[314090697,1707970240532,-849.03,0.00036727,14]
[314090699,1707970240541,-1817.6,0.00036727,14]
[314090701,1707970240550,-500.0,0.00036727,14]
[314090703,1707970240559,-1559.99,0.00036727,14]
[314090705,1707970240568,-1276.47,0.00036727,14]
[314090707,1707970240578,-500.0,0.00036727,14]
[314090710,1707970240587,-8141.03,0.00036727,14]
[314090712,1707970240596,-500.0,0.00036727,14]
[314090713,1707970240605,-7530.68,0.00036727,14]
[314090716,1707970240615,-3015.78,0.00036727,14]
[314090718,1707970240625,-2264.52,0.00036727,14]
[314090719,1707970240636,-500.0,0.00036728,14]
[314090722,1707970240646,-569.62856393,0.00036728,14]
[314090724,1707970240656,-505.07339131,0.00036728,14]
[314090725,1707970240665,-500.0,0.00036728,14]
[314090727,1707970240675,-547.99777768,0.00036728,14]
[314090729,1707970240687,-243.24558305,0.00036728,14]
[314090731,1707970240696,-500.0,0.00036728,14]
[314090733,1707970240706,-540.13,0.00036728,14]